Cogmind - Beta 15 @@@ ROGUE MODE // 2025.06.14 @ 16:41:19 Player: quak Result: Destroyed by D-53 Grenadier with Mini Grenade Launcher Performance ------------- Evolutions (0) 0 Regions Visited (2) 400 Robots Destroyed (29) 145 Value Destroyed (546) 546 Prototype IDs (2) 40 Alien Tech Used (0) 0 Bonus (0) 0 TOTAL SCORE: 1131 Bonus ------- None Cogmind --------- Core Integrity 0/250 Matter 300/300 Energy 99/100 System Corruption 0% Temperature Cool (0) Movement Core (50) Location -10/Mines Parts ------- > --- POWER (1) -------- (None) > --- PROPULSION (2) --- (None) > --- UTILITY (2) ------ (None) > --- WEAPON (2) ------- (None) > --- INVENTORY (5) ---- Light Ion Engine Wheel Hover Unit Tractor Beam Assault Rifle Peak State ------------ > --- POWER ------------ Ion Engine > --- PROPULSION ------- Wheel Wheel > --- UTILITY ---------- High-capacity Storage Unit Improved Terrain Scanner > --- WEAPON ----------- Light EM Pulse Cannon Light EM Pulse Cannon > --- INVENTORY -------- Light Ion Engine Wheel Wheel Compact Wheel Hover Unit Hover Unit Hover Unit Improved Heat Sink Large Matter Pod Targeting Computer Targeting Computer Targeting Computer Tractor Beam EM Pulse Gun Beam Cannon Assault Rifle Assault Rifle Datajack [Rating: 13] Favorites ----------- Power Ion Engine Engine Ion Engine Propulsion Wheel Wheel Wheel Utility Improved Terrain Scanner Device Improved Terrain Scanner Storage High-capacity Storage Unit Weapon Light EM Pulse Cannon Energy Gun EM Pulse Gun Energy Cannon Light EM Pulse Cannon Ballistic Gun Assault Rifle Build | -11 -10 -10 ------- Run | Yrd Mat Min Slots Evolved . | . . . Power . | . . . Propulsion . | . . . Utility . | . . . Weapon . | . . . Parts Attached 13 | 5 8 . Power 2 | 1 1 . Engine 2 | 1 1 . Core . | . . . Reactor . | . . . Propulsion 4 | 2 2 . Treads . | . . . Leg . | . . . Wheel 4 | 2 2 . Hover . | . . . Flight . | . . . Utility 3 | . 3 . Device 1 | . 1 . Storage 2 | . 2 . Processor . | . . . Hackware . | . . . Protection . | . . . Artifact . | . . . Weapon 4 | 2 2 . Energy Gun 1 | 1 . . Energy Cannon 2 | . 2 . Ballistic Gun 1 | 1 . . Ballistic Cannon . | . . . Launcher . | . . . Special Weapon . | . . . Impact Weapon . | . . . Slashing Weapon . | . . . Piercing Weapon . | . . . Special Melee Weapon . | . . . Unidentified Prototypes . | . . . Parts Lost 3 | . 1 2 Power . | . . . Propulsion 1 | . 1 . Utility . | . . . Weapon 2 | . . 2 Highest Loss Streak 2 | . 1 2 To Critical Strikes . | . . . Average Backups 10 | . 11 17 Power . | . . 1 Propulsion 3 | . 3 4 Utility 3 | . 4 7 Weapon 1 | . 1 4 Tool/Special . | . . . Unused Backups 17 | 1 2 14 Power . | . . . Propulsion 6 | . 2 4 Utility 7 | . . 7 Weapon 3 | 1 . 2 Tool/Special 1 | . . 1 Average Slot Usage (%) 94 | . 94 92 Engine 13 | . 14 12 Wheel 24 | . 24 25 Device 13 | . 14 12 Storage 13 | . 13 12 Energy Gun 5 | . 5 . Energy Cannon 15 | . 14 25 Ballistic Gun 6 | . 6 . Peak Build Rating 13 | 5 13 12 Average Rating 10 | 3 10 11 On Entrance 5 | . 4 13 Naked Turns 4 | . . 4 Heaviest Build 54 | 7 54 54 Greatest Support 26 | 20 26 26 Greatest Overweight (x) 5 | . 5 2 Average Overweight (x) 2 | . 2 1 Largest Inventory Capacity 20 | 5 20 20 Average Capacity 17 | 5 19 19 Most Carried 19 | 4 19 17 Average Carried 10 | . 11 16 Final Capacity 20 | 5 20 5 Final Carried 18 | 4 18 5 Class Distribution -------------------- 100% | Mutant Dominant Class ---------------- Mutant | -10/Materials Mutant | -10/Mines Resources | -11 -10 -10 ----------- Run | Yrd Mat Min Matter Collected 622 | 290 312 20 Remotely . | . . . Salvage Created 923 | 122 698 103 Parts 63 | 11 49 3 Haulers Intercepted 2 | . 2 . Recyclers Shooed . | . . . Parts Field Recycled . | . . . Retrieved Matter . | . . . Parts Self-Destructed . | . . . Prevented . | . . . Kills | -11 -10 -10 ------- Run | Yrd Mat Min Combat Hostiles Destroyed 15 | 1 12 2 Guns 5 | 1 4 . Cannons 7 | . 6 1 AOE 2 | . 2 . Classes Destroyed 8 | 3 5 . Worker 1 | 1 . . Tunneler 3 | 3 . . Hauler 2 | . 2 . Recycler 2 | . 2 . Operator 3 | . 3 . Watcher 3 | . 3 . Swarmer 6 | . 6 . Grunt 9 | 1 6 2 Best Kill Streak 5 | 4 5 1 Combat Bots Only 5 | 1 5 1 Max Kills in Single Turn 3 | 1 3 1 Gunslinging . | . . . Exploded 2 | . 2 . Melee . | . . . Uniques/NPCs Destroyed . | . . . Combat | -11 -10 -10 -------- Run | Yrd Mat Min Hostile Shots Fired 58 | 1 41 16 Missed 18 | . 16 2 Hits 40 | 1 25 14 Projectile 40 | 1 25 14 AOE 6 | . . 6 Damage Taken 586 | 11 274 301 Core 250 | . 70 180 Absorbed by Shields . | . . . Core Remaining (%) 100 | 100 . . Volleys Fired 69 | 10 54 5 Largest 2 | 2 2 2 Hottest 112 | 60 112 112 Shots Fired 125 | 13 102 10 Gun 79 | 13 66 . Cannon 46 | . 36 10 Launcher . | . . . Special . | . . . Kinetic 46 | 10 36 . Thermal . | . . . Explosive . | . . . Electromagnetic 79 | 3 66 10 Robot Hit Streak 9 | 3 6 9 Robot Miss Streak 4 | 1 4 1 Penetration Max . | . . . Secondary Targets . | . . . Shots Hit Robots 74 | 8 58 8 Core Hits 37 | 5 30 2 Critical Kills . | . . . Critical Parts Destroyed . | . . . Critical Strikes 1 | 1 . . Corrupt 1 | 1 . . Melee Attacks . | . . . Impact . | . . . Slashing . | . . . Piercing . | . . . Sneak Attacks . | . . . Combat Hostiles . | . . . Follow-up Attacks . | . . . Damage Inflicted 1542 | 168 1191 183 Guns 631 | 108 523 . Cannons 588 | . 405 183 Explosions 323 | 60 263 . Melee . | . . . Ramming . | . . . Kinetic 309 | 66 243 . Thermal 323 | 60 263 . Explosive . | . . . Electromagnetic 910 | 42 685 183 Impact . | . . . Slashing . | . . . Piercing . | . . . Highest Corruption . | . . . Average Corruption . | . . . Corruption Purged . | . . . Corruption Blocked . | . . . Overload Shots . | . . . Overflow Damage 2 | . 2 . Projectiles . | . . . Explosions 2 | . 2 . Melee . | . . . Knockbacks . | . . . Impact . | . . . Kinetic . | . . . Secondary . | . . . Self-Inflicted Damage 15 | . 15 . Shots 1 | . 1 . Rammed . | . . . Targets Rammed . | . . . Kicked . | . . . Crushed . | . . . Highest Temperature 252 | 6 153 252 Average Temperature 60 | 6 49 115 Received Heat Transfer 162 | 6 102 54 Siege Activations . | . . . Martial Activations . | . . . Shielding Activations . | . . . Robots Disrupted . | . . . Combat Hostiles . | . . . Robots Corrupted 1 | . . 1 Combat Hostiles 1 | . . 1 Parts Fried 5 | . 5 . Impact Corruptions . | . . . Robots Melted . | . . . Combat Hostiles . | . . . Parts Melted . | . . . Heat Transferred 350 | 100 250 . Parts Sabotaged . | . . . Parts Stolen . | . . . Parts Stripped . | . . . Power Chain Reactions 6 | 1 5 . Alert | -11 -10 -10 ------- Run | Yrd Mat Min Maximum Alert Level . | . . . Low Security (%) 100 | 100 100 100 Level 1 . | . . . Level 2 . | . . . Level 3 . | . . . Level 4 . | . . . Level 5 . | . . . High Security . | . . . Max Security . | . . . Peak Influence 161 | 26 161 78 Initial 33 | . 10 33 Average 49 | 6 53 59 Influence Increases 548 | 41 442 65 Destroy 0b10 Robot/C 300 | 20 240 40 Destroy 0b10 Robot/NC 70 | 20 50 . Destroy Leader 70 | . 60 10 Successful Hack 10 | . 10 . Disable Machine 30 | . 30 . Destroy Structure 23 | 1 22 . Partial Spotted 15 | . 15 . Lose Combat Pursuer 30 | . 15 15 Influence Decreases 520 | 25 372 123 Entered New Map 59 | . 6 53 Time Decay 431 | 25 356 50 Lost Part 30 | . 10 20 Squads Dispatched 3 | . 3 . Investigation 1 | . 1 . Extermination . | . . . Reinforcement 2 | . 2 . Assault . | . . . Garrison . | . . . Intercept . | . . . Searches Triggered . | . . . Construction Impeded . | . . . Haulers Reinforced . | . . . Active Scanning Responses . | . . . Cargo Convoy Interrupts . | . . . Stealth | -11 -10 -10 --------- Run | Yrd Mat Min Distress Signals 1 | . 1 . Communications Jammed . | . . . Distress Signals . | . . . Times Spotted 24 | 1 18 5 Peak Tracking Total 3 | 1 3 2 Tactical Retreats 2 | . 1 1 Traps | -11 -10 -10 ------- Run | Yrd Mat Min Traps Triggered 1 | . 1 . Indirectly . | . . . Trap Hack Attempts . | . . . Triggered . | . . . Disarmed . | . . . Reprogrammed . | . . . Reused . | . . . Traps Extracted . | . . . Installed . | . . . Triggered . | . . . Machines | -11 -10 -10 ---------- Run | Yrd Mat Min Machines Disabled 3 | . 3 . Max in Single Turn 1 | . 1 . Machines Repaired . | . . . Machines Dismantled . | . . . Machines Sabotaged . | . . . Overloaded Fab Kills . | . . . Hacking | -11 -10 -10 --------- Run | Yrd Mat Min Machines Accessed 8 | . 8 . Terminals 6 | . 6 . Fabricators . | . . . Repair Stations . | . . . Recycling Units 2 | . 2 . Scanalyzers . | . . . Garrison Access . | . . . Total Hacks 20 | . 20 . Successful 11 | . 11 . Failed 9 | . 9 . Catastrophic 4 | . 4 . Database Lockouts . | . . . Manual 5 | . 5 . Terminals 12 | . 12 . Fabricators . | . . . Repair Stations . | . . . Recycling Units 8 | . 8 . Scanalyzers . | . . . Garrison Access . | . . . Terminal Hacks 5 | . 5 . Prototype ID Bank 1 | . 1 . Branch Access Points 1 | . 1 . Terminal Index 1 | . 1 . Recall Investigation 1 | . 1 . Hauler Manifests 1 | . 1 . Fabricator Hacks . | . . . Repair Station Hacks . | . . . Recycling Unit Hacks 6 | . 6 . Process 2 | . 2 . Report Inventory 2 | . 2 . Retrieve Matter 2 | . 2 . Scanalyzer . | . . . Garrison Access Hacks . | . . . Unauthorized Hacks . | . . . Terminals . | . . . Fabricators . | . . . Repair Stations . | . . . Recycling Units . | . . . Scanalyzers . | . . . Garrison Access . | . . . Data Cores Recovered 1 | . 1 . Used 1 | . 1 . Hacking Detections 7 | . 7 . Full Trace Events . | . . . Feedback Events . | . . . Feedback Blocked . | . . . Robot Schematics Acquired . | . . . Robots Built . | . . . Authchips . | . . . Time . | . . . Total Robot Build Rating . | . . . Part Schematics Acquired . | . . . Parts Built . | . . . Authchips . | . . . Time . | . . . Total Part Build Rating . | . . . Parts Repaired . | . . . Time . | . . . Parts Recycled . | . . . Recycled Matter 663 | . 663 . Retrieved Matter 859 | . 859 . Retrieved Components . | . . . Parts Scanalyzed . | . . . Part Schematics Acquired . | . . . Parts Damaged . | . . . Bothacking | -11 -10 -10 ------------ Run | Yrd Mat Min Used RIF Installer . | . . . Robots Hacked . | . . . Non-combat . | . . . Combat . | . . . Robot Hacks Applied . | . . . Relay Couplers Released . | . . . Fabnet Peak Effective % . | . . . Robots Rewired . | . . . Allies Hacked . | . . . Hacks Repelled . | . . . Allies | -11 -10 -10 -------- Run | Yrd Mat Min Total Allies . | . . . Largest Group . | . . . Highest-Rated Group . | . . . Highest-Rated Ally . | . . . Total Orders . | . . . Ally Attacks . | . . . Total Damage . | . . . Kills . | . . . Allies Corrupted . | . . . Allies Melted . | . . . Intel | -11 -10 -10 ------- Run | Yrd Mat Min Active Infowar (turns) 1229 | . 1115 114 Terrain 1229 | . 1115 114 Robot Analysis Total . | . . . Derelict Logs Recovered 1 | . . 1 Drone Launches . | . . . Drone Recoveries . | . . . Exploration | -11 -10 -10 ------------- Run | Yrd Mat Min Turns Passed 1360 | 127 1115 118 Spaces Moved 961 | 116 769 76 Core 24 | 17 . 7 Treads . | . . . Legs . | . . . Wheels 937 | 99 769 69 Hover . | . . . Flight . | . . . Fastest Speed 50 | 50 80 50 Average Speed 113 | 75 118 113 Slowest Speed 155 | 80 155 120 Overloaded Moves . | . . . Propulsion Burnouts . | . . . Robots Hopped . | . . . Potential Cave-ins . | . . . Cave-ins Triggered . | . . . Exploration Rate (%) 41 | 9 97 17 Regions Visited 2 Branch Regions 1 Pre-discovered Areas . | . . . Known Exits Taken 1 | . 1 . Unknown Exits Taken 1 | 1 . . Scrap Searched . | . . . Spaces Dug . | . . . Terrain Destroyed 20 | . 20 . Melee . | . . . Projectile . | . . . AOE 20 | . 20 . Terrain Rammed . | . . . Walls Destroyed . | . . . Machines Disabled . | . . . Actions | -11 -10 -10 --------- Run | Yrd Mat Min Total 1109 | 143 868 98 Wait 29 | . 13 16 Move 959 | 115 768 76 Hop . | . . . Pick Up 30 | 9 21 . Fast Attach . | . . . Attach 10 | 6 4 . Detach 2 | 2 . . Swap 5 | . 5 . Drop 5 | 1 3 1 Fire 69 | 10 54 5 Melee . | . . . Ram . | . . . Kick . | . . . Crush . | . . . Escape Stasis . | . . . Rewire . | . . . Trap . | . . . Miscellaneous . | . . . Route ------- -11/Scrapyard -10/Materials (discovered 4 exits: [*Mat x3] / *Min) -10/Mines (discovered 1 exit: [*Sub]) History --------- Turn | Location | Event 2 | -11/Scrapyard | Met Revision 17 86 | -11/Scrapyard | Discovered new exit (range 8) 128 | -11/Scrapyard | Entered Materials 318 | -10/Materials | Discovered new exit (range 15) 323 | -10/Materials | Build established: Mutant 649 | -10/Materials | Discovered new exit (range 16) 857 | -10/Materials | Discovered new exit (range 6) 891 | -10/Materials | Identified exit to Mines 997 | -10/Materials | Discovered new exit (range 12) 1243 | -10/Materials | Entered Mines 1283 | -10/Mines | Discovered new exit (range 5) 1346 | -10/Mines | Assembled infested the area 1346 | -10/Mines | Learned Materials emergency access door positions 1351 | -10/Mines | Assisted by a Guerilla fighting off Assembled 1357 | -10/Mines | Core integrity fell below 50% 1357 | -10/Mines | Released all parts (5) 1360 | -10/Mines | Core integrity fell below 20% 1361 | -10/Mines | Destroyed by D-53 Grenadier with Mini Grenade Launcher Last Messages --------------- 01290_ R-06 Scavenger collects Aluminum Leg. 01291_ T-07 Excavator is excavating. 01294_ R-06 Scavenger collects Corrupted Hover Unit. 01295_ T-07 Excavator is excavating. 01346_ ALERT: Infestation in the mines, dispatching Demolisher response squad. 01346_ Acquired derelict log, extracted data. Data stored: Materials emergency access points. 01351_ A derelict emerges from the shadows: "You need to get out of here! I've been tracking a group of Assembled to figure out where they're coming from, and they're closing on this area, come on!" 01355_ C-30 ARC bursts open, deploying its payload. 01355_ D-53 Grenadier unfolds itself. 01355_ Lgt. EM Pulse Cannon destroyed. 01357_ Released Com. Wheel. 01357_ Released Ion Engine. 01357_ Released Hcp. Storage Unit. 01357_ Released Imp. Terrain Scanner. 01357_ Released Wheel. 01360_ The unstable cave ceiling collapses. Map ----- +----------------------------------------------------+ | ?????## #??????#?????????????????????? | | ????## #??######??##????????????????? | | ???## #?? <#?????#??????????????? | | ???# #?## #??#?##???????????????? | | ??## #?# #?????????????????????? | | ??# ### #?????????????????????? | | ??# ### ##?#?????? ????????????? | | ??# #??????????????????????? | | ??## ##???#??????????????????? | | ##?## % ##???????????????????????? | | ?#?## ###?#?????????????????????? | | ????## ##?????????? ??????????????? | | ???#?## ##?????? ??? ???????????????? | | ?????### #???#??#????????????????????? | | ???????# ##?????? ???????#???????????? | | ?#??#??# % ##????????#????????????????? | | ??????## #??????? #?#??????????????? | | ????### #######? #????????????????? | | ???## ## ## #????????????????? | | ??## # # # #????????????????? | | ??# ###### ]!dd% ##??????#????????? | | ??# ###?#?# =[* #???? #????????? | | ??# #?????# ! = ! h ### ????????? | | ??# ####??# !! $ ?????????? | | ??# #### #! #?????????????? | | ??# r @ #??????????????? | | ??# """ #### ##??????????????? | | ??# """ #?### #???????????????? | | ??## """ #???## #####???#???????????? | | ???# ##????####???????????????????? | | ???# ####???????????#????????????????? | | ???# #???????????????????????????????? | | ???# #???????????????????????????????? | | ???# #???????????????????????????????? | | ???# #?????????#?????????????????????? | | ???? #???????????????????????????????? | | ???? #???????????????????????????????? | | #??? ????????????????????????????????? | | ???? ????????????????????????????????? | | ???? ????????????????????????????????? | | ??????????#???????????????????????????? | | ?????????????? ???????????????????????? | | ??????????????????????????????????????? | | ??????????????????????????????????????? | | ??????????????????????????????????????? | | ??????????????????????????????????????? | | ??????????????????????????????????????? | | ??????????????????????????????????????? | | ??????????????????????????????????????? | | ??????????????????????????????????????? | +----------------------------------------------------+ Best States ------------- Heat Dissipation 25 Energy Generation 10 Energy Capacity 250 Matter Stores 300 Matter Capacity 300 Sight Range 16 Terrain Scan Range 16 Terrain Scan Density 10 Evasion (%) 50 Item Schematics ----------------- None Robot Schematics ------------------ None Fabricated ------------ Nothing Repaired ---------- Nothing Alien Tech Used ----------------- None Achievements -------------- Dynamic Key Power Corrupts Challenges ------------ None Game ------ Seed BiomechanicalLinkedFlakker Manual? 0 Play Time 00:20:21 Cumulative 4.6 hours Start 2025.06.14 @ 16:21:36 End 2025.06.14 @ 16:41:19 Sessions 1 Manual Loads 0 Difficulty Rogue Special Mode None Game No. 5 Rogue 5 Adventurer 0 Explorer 0 Win Type - Total 0 Types 0/0/0/0/0/0/0/0/0/0 Lore% 1 Gallery% 5 Achievement% 13 Wizard Run 0 Options --------- Layout 0 ASCII 0 Keyboard 1 Movement Vi Keybinds 0 Fullscreen 1 Font 18/SmallcapsGlow Map View 76x50 Zoom Use 0% Tactical HUD 1 Map Filters NONE Filters NONE Steam 1 RUN: 6169d406-e034-499c-af1b-6167060e8875